[Event "Early-Titled-Tuesday-Blitz-September-12-2023"]
[Site "Chess.com"]
[Date "2023.09.12"]
[Round "10"]
[White "Aradhya2000"]
[Black "MrTattaglia"]
[Result "1/2-1/2"]
[WhiteElo "2708"]
[BlackElo "2894"]
[TimeControl "180+1"]
[EndTime "9:57:22 PDT"]
[Termination "Game drawn by repetition"]

1. d4 {[%clk 0:03:00.9]} 1... Nf6 {[%clk 0:02:47.1]} 2. c4 {[%clk 0:03:01.4]}
2... c5 {[%clk 0:02:47.2]} 3. d5 {[%clk 0:03:00.8]} 3... b5 {[%clk 0:02:47.7]}
4. cxb5 {[%clk 0:03:00.3]} 4... a6 {[%clk 0:02:47.1]} 5. b6 {[%clk 0:02:55.8]}
5... g6 {[%clk 0:02:39.4]} 6. Nc3 {[%clk 0:02:55.8]} 6... Bg7 {[%clk 0:02:39.9]}
7. d6 {[%clk 0:02:55.8]} 7... O-O {[%clk 0:02:39.7]} 8. Nf3 {[%clk 0:02:54.1]}
8... Nc6 {[%clk 0:02:23.2]} 9. dxe7 {[%clk 0:02:50.1]} 9... Qxe7 {[%clk
0:02:24.1]} 10. e3 {[%clk 0:02:50.3]} 10... d5 {[%clk 0:02:23.2]} 11. Nxd5
{[%clk 0:02:49.7]} 11... Nxd5 {[%clk 0:02:22]} 12. Qxd5 {[%clk 0:02:50.6]} 12...
Bb7 {[%clk 0:02:22]} 13. Qb3 {[%clk 0:02:33]} 13... Nb4 {[%clk 0:02:17.3]} 14.
Bd2 {[%clk 0:02:31.7]} 14... Rad8 {[%clk 0:02:07.5]} 15. Bxb4 {[%clk 0:02:29.2]}
15... cxb4 {[%clk 0:02:07.3]} 16. Bc4 {[%clk 0:02:29.5]} 16... Qd6 {[%clk
0:01:52.2]} 17. O-O {[%clk 0:02:28.2]} 17... Qxb6 {[%clk 0:01:52.3]} 18. Rfd1
{[%clk 0:02:24.3]} 18... Qf6 {[%clk 0:01:47.6]} 19. Nd4 {[%clk 0:01:49.9]} 19...
a5 {[%clk 0:01:46.5]} 20. a3 {[%clk 0:01:49.7]} 20... Qg5 {[%clk 0:01:35.3]} 21.
g3 {[%clk 0:01:48.4]} 21... Qe7 {[%clk 0:01:01]} 22. axb4 {[%clk 0:01:44.8]}
22... axb4 {[%clk 0:00:58.6]} 23. Ra7 {[%clk 0:01:10]} 23... Rd7 {[%clk
0:00:29]} 24. Bb5 {[%clk 0:00:43.1]} 24... Rd6 {[%clk 0:00:27.8]} 25. Bc6 {[%clk
0:00:39.6]} 25... Bxd4 {[%clk 0:00:03.5]} 26. Rxb7 {[%clk 0:00:34.1]} 26... Qf6
{[%clk 0:00:03]} 27. Bd5 {[%clk 0:00:23.2]} 27... Bxb2 {[%clk 0:00:02.3]} 28.
Rxb4 {[%clk 0:00:13.4]} 28... Be5 {[%clk 0:00:01.5]} 29. Rb7 {[%clk 0:00:12.9]}
29... Kg7 {[%clk 0:00:01.8]} 30. Kg2 {[%clk 0:00:12.1]} 30... h5 {[%clk
0:00:01.9]} 31. f4 {[%clk 0:00:12]} 31... Bc3 {[%clk 0:00:01.3]} 32. e4 {[%clk
0:00:12.4]} 32... Rdd8 {[%clk 0:00:01.4]} 33. e5 {[%clk 0:00:12.6]} 33... Qa6
{[%clk 0:00:01.5]} 34. Bf3 {[%clk 0:00:10.2]} 34... Rxd1 {[%clk 0:00:01.2]} 35.
Qxd1 {[%clk 0:00:10.3]} 35... Ba5 {[%clk 0:00:01.4]} 36. Qe2 {[%clk 0:00:08.8]}
36... Qxe2+ {[%clk 0:00:01.1]} 37. Bxe2 {[%clk 0:00:09]} 37... h4 {[%clk
0:00:02]} 38. Bc4 {[%clk 0:00:08.9]} 38... Bd8 {[%clk 0:00:02.9]} 39. e6 {[%clk
0:00:08.6]} 39... hxg3 {[%clk 0:00:03.1]} 40. hxg3 {[%clk 0:00:08.5]} 40... Re8
{[%clk 0:00:02.5]} 41. Rxf7+ {[%clk 0:00:07.4]} 41... Kh6 {[%clk 0:00:02.5]} 42.
Rd7 {[%clk 0:00:07.4]} 42... Be7 {[%clk 0:00:02.2]} 43. Rd5 {[%clk 0:00:07.6]}
43... g5 {[%clk 0:00:02.3]} 44. f5 {[%clk 0:00:07.5]} 44... Kg7 {[%clk
0:00:02.8]} 45. Bd3 {[%clk 0:00:07.9]} 45... Kf6 {[%clk 0:00:03.2]} 46. Rd7
{[%clk 0:00:08]} 46... Rd8 {[%clk 0:00:03.6]} 47. Rxd8 {[%clk 0:00:07.7]} 47...
Bxd8 {[%clk 0:00:04.5]} 48. Kf3 {[%clk 0:00:08.4]} 48... Be7 {[%clk 0:00:05.1]}
49. g4 {[%clk 0:00:09]} 49... Bb4 {[%clk 0:00:05.1]} 50. Ke4 {[%clk 0:00:09.4]}
50... Be7 {[%clk 0:00:06]} 51. Kd5 {[%clk 0:00:08.7]} 51... Bd8 {[%clk
0:00:06.9]} 52. Kc6 {[%clk 0:00:09.1]} 52... Be7 {[%clk 0:00:07.8]} 53. Kd7
{[%clk 0:00:09.4]} 53... Ba3 {[%clk 0:00:08.4]} 54. Bc4 {[%clk 0:00:09.8]} 54...
Be7 {[%clk 0:00:09.3]} 55. Bb3 {[%clk 0:00:10.1]} 55... Ba3 {[%clk 0:00:10.2]}
56. Ke8 {[%clk 0:00:10.5]} 56... Be7 {[%clk 0:00:11.1]} 57. Ba4 {[%clk
0:00:10.9]} 57... Ba3 {[%clk 0:00:12]} 58. Kd7 {[%clk 0:00:11.5]} 58... Be7
{[%clk 0:00:12.8]} 59. Bc2 {[%clk 0:00:11.5]} 59... Ba3 {[%clk 0:00:13.7]} 60.
Kc6 {[%clk 0:00:11.9]} 60... Be7 {[%clk 0:00:14.6]} 61. Kd5 {[%clk 0:00:12.5]}
61... Ba3 {[%clk 0:00:15.5]} 62. Kc6 {[%clk 0:00:09.7]} 62... Be7 {[%clk
0:00:16.4]} 63. Kd7 {[%clk 0:00:10.1]} 63... Ba3 {[%clk 0:00:16.9]} 64. Bd3
{[%clk 0:00:09.7]} 64... Be7 {[%clk 0:00:17.4]} 65. Bc4 {[%clk 0:00:10.2]} 65...
Ba3 {[%clk 0:00:18.3]} 66. Bb5 {[%clk 0:00:09.7]} 66... Be7 {[%clk 0:00:19.2]}
67. Ba6 {[%clk 0:00:10.3]} 67... Ba3 {[%clk 0:00:19.9]} 68. Bc8 {[%clk
0:00:11.2]} 68... Be7 {[%clk 0:00:20.4]} 69. Ke8 {[%clk 0:00:12.1]} 69... Ba3
{[%clk 0:00:21.1]} 70. e7 {[%clk 0:00:12.8]} 70... Bxe7 {[%clk 0:00:21.9]} 71.
Be6 {[%clk 0:00:13.1]} 71... Ba3 {[%clk 0:00:22.8]} 72. Kd7 {[%clk 0:00:13.4]}
72... Be7 {[%clk 0:00:23.3]} 73. Bc4 {[%clk 0:00:13.2]} 73... Ba3 {[%clk
0:00:24.2]} 74. Bd3 {[%clk 0:00:13.8]} 74... Be7 {[%clk 0:00:24.5]} 75. Kc6
{[%clk 0:00:14.6]} 75... Ba3 {[%clk 0:00:25.2]} 76. Kd5 {[%clk 0:00:15.3]} 76...
Bf8 {[%clk 0:00:25.9]} 77. Bc2 {[%clk 0:00:15.7]} 77... Be7 {[%clk 0:00:26.8]}
78. Ke4 {[%clk 0:00:16.3]} 78... Bf8 {[%clk 0:00:27.7]} 79. Bb3 {[%clk
0:00:16.8]} 79... Be7 {[%clk 0:00:28.6]} 80. Kd5 {[%clk 0:00:17.1]} 80... Bf8
{[%clk 0:00:29.5]} 81. Kc6 {[%clk 0:00:17.5]} 81... Be7 {[%clk 0:00:30.4]} 82.
Kd7 {[%clk 0:00:18]} 82... Ba3 {[%clk 0:00:31.3]} 83. Ke8 {[%clk 0:00:16.6]}
83... Be7 {[%clk 0:00:32.2]} 84. Kd7 {[%clk 0:00:16.6]} 84... Ba3 {[%clk
0:00:33.1]} 85. Bc4 {[%clk 0:00:16.6]} 85... Be7 {[%clk 0:00:32.8]} 86. Bb3
{[%clk 0:00:16.8]} 1/2-1/2

[Event "Early-Titled-Tuesday-Blitz-September-12-2023"]
[Site "Chess.com"]
[Date "2023.09.12"]
[Round "10"]
[White "esrosenberg"]
[Black "Chessdreamer2020"]
[Result "0-1"]
[WhiteElo "2359"]
[BlackElo "2520"]
[TimeControl "180+1"]
[EndTime "9:57:22 PDT"]
[Termination "Chessdreamer2020 won by checkmate"]

1. d4 {[%clk 0:03:00.9]} 1... d6 {[%clk 0:02:59.5]} 2. e4 {[%clk 0:03:00.6]}
2... Nf6 {[%clk 0:02:59.3]} 3. Nc3 {[%clk 0:03:01.2]} 3... c6 {[%clk 0:03:00.2]}
4. Nf3 {[%clk 0:03:01.2]} 4... Bg4 {[%clk 0:02:59.8]} 5. Be2 {[%clk 0:03:01.5]}
5... e6 {[%clk 0:03:00.1]} 6. h3 {[%clk 0:03:01.3]} 6... Bxf3 {[%clk 0:03:00.2]}
7. Bxf3 {[%clk 0:03:02.2]} 7... d5 {[%clk 0:03:01.1]} 8. O-O {[%clk 0:03:02]}
8... Bb4 {[%clk 0:02:59.9]} 9. e5 {[%clk 0:02:57.9]} 9... Nfd7 {[%clk
0:02:59.7]} 10. Bd2 {[%clk 0:02:54.7]} 10... O-O {[%clk 0:02:54.7]} 11. Ne2
{[%clk 0:02:54.6]} 11... Be7 {[%clk 0:02:43.3]} 12. c3 {[%clk 0:02:54.8]} 12...
c5 {[%clk 0:02:43.1]} 13. g3 {[%clk 0:02:54.4]} 13... Nc6 {[%clk 0:02:43.6]} 14.
Bg2 {[%clk 0:02:54.5]} 14... Rc8 {[%clk 0:02:44]} 15. a3 {[%clk 0:02:54.5]}
15... Qb6 {[%clk 0:02:44.1]} 16. Be3 {[%clk 0:02:33.1]} 16... cxd4 {[%clk
0:02:39.4]} 17. cxd4 {[%clk 0:02:32.5]} 17... Qxb2 {[%clk 0:02:17.3]} 18. Rb1
{[%clk 0:02:32.4]} 18... Qxa3 {[%clk 0:02:17.3]} 19. Rxb7 {[%clk 0:02:33.1]}
19... Rfd8 {[%clk 0:02:13.7]} 20. Qa1 {[%clk 0:02:17.1]} 20... Rb8 {[%clk
0:02:01.6]} 21. Rc7 {[%clk 0:02:10.3]} 21... Rbc8 {[%clk 0:01:51.6]} 22. Rb7
{[%clk 0:02:01.7]} 22... Qxa1 {[%clk 0:01:44.8]} 23. Rxa1 {[%clk 0:02:01]} 23...
Kf8 {[%clk 0:01:30.2]} 24. f4 {[%clk 0:01:35]} 24... g6 {[%clk 0:01:27.7]} 25.
g4 {[%clk 0:01:30.9]} 25... Nb6 {[%clk 0:01:21.7]} 26. f5 {[%clk 0:01:26.7]}
26... gxf5 {[%clk 0:01:21.1]} 27. gxf5 {[%clk 0:01:26.9]} 27... exf5 {[%clk
0:00:52.2]} 28. Bh6+ {[%clk 0:01:16.6]} 28... Ke8 {[%clk 0:00:52.1]} 29. Kh2
{[%clk 0:01:12.7]} 29... Rd7 {[%clk 0:00:51.5]} 30. Rxd7 {[%clk 0:01:06.2]}
30... Kxd7 {[%clk 0:00:51.7]} 31. Nf4 {[%clk 0:00:54.9]} 31... Rc7 {[%clk
0:00:36.2]} 32. Bxd5 {[%clk 0:00:45.8]} 32... Nxd5 {[%clk 0:00:37.1]} 33. Nxd5
{[%clk 0:00:46.2]} 33... Rb7 {[%clk 0:00:37.1]} 34. Be3 {[%clk 0:00:41.4]} 34...
Rb3 {[%clk 0:00:33.7]} 35. Bg1 {[%clk 0:00:36.9]} 35... Bh4 {[%clk 0:00:28.1]}
36. Ne3 {[%clk 0:00:21.5]} 36... Nxd4 {[%clk 0:00:20.7]} 37. Rxa7+ {[%clk
0:00:21.2]} 37... Ke6 {[%clk 0:00:21.1]} 38. Ra6+ {[%clk 0:00:20.3]} 38... Kxe5
{[%clk 0:00:19.7]} 39. Nc4+ {[%clk 0:00:16.7]} 39... Kd5 {[%clk 0:00:16.5]} 40.
Bxd4 {[%clk 0:00:14.6]} 40... Kxd4 {[%clk 0:00:14]} 41. Nd6 {[%clk 0:00:12.5]}
41... Bg3+ {[%clk 0:00:08]} 42. Kg2 {[%clk 0:00:12.3]} 42... Bxd6 {[%clk
0:00:07.7]} 43. Rxd6+ {[%clk 0:00:13.2]} 43... Ke5 {[%clk 0:00:07.8]} 44. Rd7
{[%clk 0:00:12.9]} 44... Ke6 {[%clk 0:00:06.8]} 45. Rd8 {[%clk 0:00:11.7]} 45...
Kf6 {[%clk 0:00:05.9]} 46. Rg8 {[%clk 0:00:09.8]} 46... h5 {[%clk 0:00:04.8]}
47. h4 {[%clk 0:00:08.3]} 47... Rb4 {[%clk 0:00:03.9]} 48. Kh3 {[%clk
0:00:08.8]} 48... Rg4 {[%clk 0:00:04.2]} 49. Rh8 {[%clk 0:00:08.6]} 49... Kg6
{[%clk 0:00:04.7]} 50. Rg8+ {[%clk 0:00:08.8]} 50... Kh7 {[%clk 0:00:05]} 51.
Rf8 {[%clk 0:00:07.8]} 51... Kg7 {[%clk 0:00:04.7]} 52. Ra8 {[%clk 0:00:07.5]}
52... Kg6 {[%clk 0:00:03.6]} 53. Rg8+ {[%clk 0:00:06.9]} 53... Kh7 {[%clk
0:00:04]} 54. Rf8 {[%clk 0:00:06.8]} 54... Kg7 {[%clk 0:00:03.4]} 55. Ra8 {[%clk
0:00:07.2]} 55... Rc4 {[%clk 0:00:02.1]} 56. Ra5 {[%clk 0:00:06.6]} 56... Rf4
{[%clk 0:00:01.8]} 57. Rb5 {[%clk 0:00:06.3]} 57... Kg6 {[%clk 0:00:02.5]} 58.
Rb6+ {[%clk 0:00:06.1]} 58... f6 {[%clk 0:00:03.4]} 59. Rb7 {[%clk 0:00:05.4]}
59... Rf3+ {[%clk 0:00:04.3]} 60. Kg2 {[%clk 0:00:05.3]} 60... Rc3 {[%clk
0:00:05.2]} 61. Rb8 {[%clk 0:00:05]} 61... f4 {[%clk 0:00:05.3]} 62. Rb4 {[%clk
0:00:04.1]} 62... Kf5 {[%clk 0:00:05.1]} 63. Rb5+ {[%clk 0:00:03]} 63... Kg4
{[%clk 0:00:05.5]} 64. Rb6 {[%clk 0:00:03.3]} 64... Rc2+ {[%clk 0:00:05.9]} 65.
Kf1 {[%clk 0:00:03.7]} 65... Kf3 {[%clk 0:00:05.6]} 66. Ke1 {[%clk 0:00:04.1]}
66... Rh2 {[%clk 0:00:05.8]} 67. Rxf6 {[%clk 0:00:04.1]} 67... Rxh4 {[%clk
0:00:06.7]} 68. Kf1 {[%clk 0:00:04.5]} 68... Rh1# {[%clk 0:00:07]} 0-1

[Event "Early-Titled-Tuesday-Blitz-September-12-2023"]
[Site "Chess.com"]
[Date "2023.09.12"]
[Round "10"]
[White "DarZay"]
[Black "Jaka_Brilej"]
[Result "1-0"]
[WhiteElo "2276"]
[BlackElo "2421"]
[TimeControl "180+1"]
[EndTime "9:57:23 PDT"]
[Termination "DarZay won by checkmate"]

1. e4 {[%clk 0:02:59.9]} 1... e6 {[%clk 0:02:56.3]} 2. d4 {[%clk 0:02:59.5]}
2... d5 {[%clk 0:02:56.2]} 3. Bd3 {[%clk 0:02:59.5]} 3... dxe4 {[%clk
0:02:53.3]} 4. Bxe4 {[%clk 0:02:59.6]} 4... Nf6 {[%clk 0:02:53.9]} 5. Bf3 {[%clk
0:02:59.2]} 5... Nbd7 {[%clk 0:02:54.5]} 6. Ne2 {[%clk 0:02:55.9]} 6... Bd6
{[%clk 0:02:54.7]} 7. O-O {[%clk 0:02:53.7]} 7... O-O {[%clk 0:02:55.1]} 8. Ng3
{[%clk 0:02:53.7]} 8... Re8 {[%clk 0:02:52]} 9. c3 {[%clk 0:02:34.5]} 9... e5
{[%clk 0:02:52.4]} 10. Nf5 {[%clk 0:02:34.4]} 10... Bf8 {[%clk 0:02:51.8]} 11.
Re1 {[%clk 0:01:54.8]} 11... e4 {[%clk 0:02:42.1]} 12. Be2 {[%clk 0:01:52.8]}
12... Nb6 {[%clk 0:02:42.5]} 13. Ng3 {[%clk 0:01:51.4]} 13... c6 {[%clk
0:01:27.4]} 14. c4 {[%clk 0:01:41.2]} 14... g6 {[%clk 0:01:15.4]} 15. Nc3 {[%clk
0:01:37.7]} 15... h5 {[%clk 0:00:56.2]} 16. Bg5 {[%clk 0:01:36.2]} 16... Be7
{[%clk 0:00:56.8]} 17. Qd2 {[%clk 0:01:26.7]} 17... Be6 {[%clk 0:00:39.3]} 18.
c5 {[%clk 0:01:20.1]} 18... Nbd5 {[%clk 0:00:28.3]} 19. Ncxe4 {[%clk 0:01:03.5]}
19... Nxe4 {[%clk 0:00:28.1]} 20. Nxe4 {[%clk 0:01:03.7]} 20... Bf5 {[%clk
0:00:26.4]} 21. Bxe7 {[%clk 0:01:01.6]} 21... Rxe7 {[%clk 0:00:25.4]} 22. Nd6
{[%clk 0:00:56.8]} 22... Be6 {[%clk 0:00:26]} 23. Qg5 {[%clk 0:00:48.4]} 23...
Rd7 {[%clk 0:00:24.2]} 24. Qh6 {[%clk 0:00:41.9]} 24... Qf6 {[%clk 0:00:23.5]}
25. Bf3 {[%clk 0:00:36.8]} 25... Ne7 {[%clk 0:00:18.6]} 26. Bxh5 {[%clk
0:00:19.1]} 26... Qxd4 {[%clk 0:00:15.9]} 27. Bf3 {[%clk 0:00:08]} 27... Qxc5
{[%clk 0:00:15.8]} 28. Ne4 {[%clk 0:00:08]} 28... Qf5 {[%clk 0:00:14.8]} 29. Ng5
{[%clk 0:00:07.1]} 29... Qf6 {[%clk 0:00:14.9]} 30. Qh7+ {[%clk 0:00:04.8]}
30... Kf8 {[%clk 0:00:15.4]} 31. Qh4 {[%clk 0:00:05.1]} 31... Qg7 {[%clk
0:00:14.8]} 32. Rxe6 {[%clk 0:00:02.9]} 32... fxe6 {[%clk 0:00:15.7]} 33. Nxe6+
{[%clk 0:00:02.6]} 33... Kg8 {[%clk 0:00:15.1]} 34. Nxg7 {[%clk 0:00:03.1]}
34... Kxg7 {[%clk 0:00:16]} 35. Qe4 {[%clk 0:00:03.4]} 35... Rad8 {[%clk
0:00:15.4]} 36. Qe5+ {[%clk 0:00:03.9]} 36... Kg8 {[%clk 0:00:16]} 37. h3 {[%clk
0:00:04.2]} 37... Nf5 {[%clk 0:00:16.3]} 38. Qe6+ {[%clk 0:00:04.6]} 38... Kg7
{[%clk 0:00:16.3]} 39. Be4 {[%clk 0:00:05.2]} 39... Re7 {[%clk 0:00:16.6]} 40.
Qc4 {[%clk 0:00:04.8]} 40... Rd4 {[%clk 0:00:16.6]} 41. Qc3 {[%clk 0:00:04.6]}
41... Rxe4 {[%clk 0:00:16.5]} 42. g4 {[%clk 0:00:04.5]} 42... Nd6 {[%clk
0:00:13]} 43. Rd1 {[%clk 0:00:04.6]} 43... Nb5 {[%clk 0:00:13.2]} 44. Qc1 {[%clk
0:00:04.4]} 44... Rxd1+ {[%clk 0:00:11]} 45. Qxd1 {[%clk 0:00:04.9]} 45... Nd4
{[%clk 0:00:11.6]} 46. Qd3 {[%clk 0:00:04.6]} 46... Re1+ {[%clk 0:00:10]} 47.
Kg2 {[%clk 0:00:05.2]} 47... Ne6 {[%clk 0:00:10.8]} 48. Qc3+ {[%clk 0:00:05]}
48... Kf7 {[%clk 0:00:09.9]} 49. Qxe1 {[%clk 0:00:05.2]} 49... Nf4+ {[%clk
0:00:10.8]} 50. Kf3 {[%clk 0:00:05.2]} 50... Nd5 {[%clk 0:00:11.7]} 51. Qe4
{[%clk 0:00:05.2]} 51... g5 {[%clk 0:00:12.5]} 52. Qf5+ {[%clk 0:00:05.2]} 52...
Ke7 {[%clk 0:00:12.7]} 53. Qxg5+ {[%clk 0:00:05.7]} 53... Kd7 {[%clk 0:00:13.6]}
54. Qf5+ {[%clk 0:00:06]} 54... Kd6 {[%clk 0:00:14]} 55. Qg6+ {[%clk 0:00:06.1]}
55... Kc5 {[%clk 0:00:14.2]} 56. h4 {[%clk 0:00:06.7]} 56... Ne7 {[%clk
0:00:15.1]} 57. Qg5+ {[%clk 0:00:06.7]} 57... Nd5 {[%clk 0:00:16]} 58. Qf5
{[%clk 0:00:06.7]} 58... Kd4 {[%clk 0:00:16.9]} 59. Qf6+ {[%clk 0:00:06.2]}
59... Kd3 {[%clk 0:00:17.1]} 60. Qf5+ {[%clk 0:00:06]} 60... Kd2 {[%clk
0:00:17.1]} 61. h5 {[%clk 0:00:06.4]} 61... Nb4 {[%clk 0:00:16.2]} 62. h6 {[%clk
0:00:05.7]} 62... Nd3 {[%clk 0:00:17.1]} 63. h7 {[%clk 0:00:05]} 63... Ne1+
{[%clk 0:00:18]} 64. Kf4 {[%clk 0:00:05]} 64... Nd3+ {[%clk 0:00:18.3]} 65. Kg5
{[%clk 0:00:05.3]} 65... Nxf2 {[%clk 0:00:18.5]} 66. Qxf2+ {[%clk 0:00:05]}
66... Kc1 {[%clk 0:00:19.4]} 67. h8=Q {[%clk 0:00:05.1]} 67... Kb1 {[%clk
0:00:20.3]} 68. Qh1+ {[%clk 0:00:05.1]} 68... Kxa2 {[%clk 0:00:20.4]} 69. Qd2
{[%clk 0:00:04.5]} 69... Kb3 {[%clk 0:00:21.3]} 70. Qc3+ {[%clk 0:00:04.4]}
70... Ka4 {[%clk 0:00:21.9]} 71. Qa1+ {[%clk 0:00:04.4]} 71... Kb5 {[%clk
0:00:22.8]} 72. Qb3+ {[%clk 0:00:04.6]} 72... Kc5 {[%clk 0:00:21.2]} 73. Qc1+
{[%clk 0:00:04.8]} 73... Kd6 {[%clk 0:00:21.5]} 74. Qf4+ {[%clk 0:00:04.8]}
74... Kd7 {[%clk 0:00:21.6]} 75. Qff7+ {[%clk 0:00:04.6]} 75... Kd8 {[%clk
0:00:22]} 76. Qd3+ {[%clk 0:00:03.8]} 76... Kc8 {[%clk 0:00:22.9]} 77. Qdd7+
{[%clk 0:00:03.7]} 77... Kb8 {[%clk 0:00:23.8]} 78. Qd8# {[%clk 0:00:04.3]} 1-0

[Event "Early-Titled-Tuesday-Blitz-September-12-2023"]
[Site "Chess.com"]
[Date "2023.09.12"]
[Round "10"]
[White "Alexandr_Predke"]
[Black "Zohid6"]
[Result "1/2-1/2"]
[WhiteElo "2904"]
[BlackElo "2750"]
[TimeControl "180+1"]
[EndTime "9:57:24 PDT"]
[Termination "Game drawn by agreement"]

1. Nf3 {[%clk 0:02:59.6]} 1... Nf6 {[%clk 0:02:58.3]} 2. g3 {[%clk 0:02:59.7]}
2... d5 {[%clk 0:02:58.2]} 3. Bg2 {[%clk 0:03:00]} 3... Bg4 {[%clk 0:02:58.9]}
4. c4 {[%clk 0:02:58.5]} 4... c6 {[%clk 0:02:58.5]} 5. Qb3 {[%clk 0:02:55.2]}
5... Qb6 {[%clk 0:02:57.4]} 6. O-O {[%clk 0:02:51.6]} 6... e6 {[%clk 0:02:56]}
7. d3 {[%clk 0:02:49.6]} 7... Nbd7 {[%clk 0:02:55.6]} 8. Be3 {[%clk 0:02:39.4]}
8... Bc5 {[%clk 0:02:51.7]} 9. Bxc5 {[%clk 0:02:32.9]} 9... Nxc5 {[%clk
0:02:45.3]} 10. Qa3 {[%clk 0:02:26.2]} 10... O-O {[%clk 0:02:41.6]} 11. Nbd2
{[%clk 0:02:21.1]} 11... a5 {[%clk 0:02:39.6]} 12. b3 {[%clk 0:02:01.3]} 12...
Rfe8 {[%clk 0:02:36]} 13. Rac1 {[%clk 0:01:57]} 13... Ncd7 {[%clk 0:02:30.3]}
14. h3 {[%clk 0:01:55.1]} 14... Bh5 {[%clk 0:02:19.7]} 15. Qb2 {[%clk
0:01:38.3]} 15... e5 {[%clk 0:02:03.9]} 16. cxd5 {[%clk 0:01:38]} 16... cxd5
{[%clk 0:02:04.8]} 17. Kh2 {[%clk 0:01:34.7]} 17... a4 {[%clk 0:02:00.2]} 18. b4
{[%clk 0:01:29.3]} 18... a3 {[%clk 0:01:59.8]} 19. Qc3 {[%clk 0:01:26.4]} 19...
h6 {[%clk 0:01:51]} 20. e3 {[%clk 0:01:04.3]} 20... Re6 {[%clk 0:01:47.3]} 21.
Qc7 {[%clk 0:00:54.9]} 21... Qb5 {[%clk 0:01:32.1]} 22. d4 {[%clk 0:00:44.2]}
22... e4 {[%clk 0:01:02.4]} 23. Ne5 {[%clk 0:00:44.4]} 23... Nxe5 {[%clk
0:00:59.4]} 24. dxe5 {[%clk 0:00:45.3]} 24... Ne8 {[%clk 0:01:00]} 25. Qc3
{[%clk 0:00:36.9]} 25... Be2 {[%clk 0:00:56.1]} 26. Rfe1 {[%clk 0:00:32.8]}
26... Bd3 {[%clk 0:00:56.1]} 27. Nb3 {[%clk 0:00:31.4]} 27... Rc6 {[%clk
0:00:53.3]} 28. Qd2 {[%clk 0:00:31.6]} 28... Rc4 {[%clk 0:00:52.4]} 29. Nd4
{[%clk 0:00:22.3]} 29... Qxb4 {[%clk 0:00:50]} 30. Rcd1 {[%clk 0:00:12.7]} 30...
Rac8 {[%clk 0:00:39.9]} 31. Bf1 {[%clk 0:00:12.5]} 31... Bxf1 {[%clk 0:00:35.6]}
32. Rxf1 {[%clk 0:00:13.4]} 32... Qxd2 {[%clk 0:00:21.3]} 33. Rxd2 {[%clk
0:00:14.3]} 33... Rc1 {[%clk 0:00:21.9]} 34. Rxc1 {[%clk 0:00:12.9]} 34... Rxc1
{[%clk 0:00:22.8]} 35. Nb5 {[%clk 0:00:12.4]} 35... Nc7 {[%clk 0:00:23.2]} 36.
Nxa3 {[%clk 0:00:06.6]} 36... b5 {[%clk 0:00:22.2]} 37. Nc2 {[%clk 0:00:06.2]}
37... Kf8 {[%clk 0:00:20.9]} 38. Nb4 {[%clk 0:00:06]} 38... Rc5 {[%clk
0:00:20.1]} 39. Kg2 {[%clk 0:00:05.5]} 39... Ke7 {[%clk 0:00:20.6]} 40. Rb2
{[%clk 0:00:04.5]} 40... Ke6 {[%clk 0:00:20.2]} 41. Nc2 {[%clk 0:00:04.9]} 41...
Kxe5 {[%clk 0:00:19.9]} 42. Nd4 {[%clk 0:00:05.1]} 42... g5 {[%clk 0:00:17.6]}
43. h4 {[%clk 0:00:04.9]} 43... f5 {[%clk 0:00:16.3]} 44. hxg5 {[%clk
0:00:04.5]} 44... hxg5 {[%clk 0:00:17.2]} 45. Nb3 {[%clk 0:00:03.2]} 45... Rc4
{[%clk 0:00:14.7]} 46. Nd4 {[%clk 0:00:03.7]} 46... f4 {[%clk 0:00:12.4]} 47.
gxf4+ {[%clk 0:00:03.2]} 47... gxf4 {[%clk 0:00:13.3]} 48. Nxb5 {[%clk
0:00:02.6]} 48... f3+ {[%clk 0:00:13.9]} 49. Kg3 {[%clk 0:00:02.8]} 49... Nxb5
{[%clk 0:00:14]} 50. Rxb5 {[%clk 0:00:03.7]} 50... Rc1 {[%clk 0:00:14.6]} 51.
Rb2 {[%clk 0:00:03.7]} 51... Rg1+ {[%clk 0:00:13.5]} 52. Kh3 {[%clk 0:00:03.4]}
52... Ra1 {[%clk 0:00:14.4]} 53. Rd2 {[%clk 0:00:02.9]} 53... Rg1 {[%clk
0:00:11.8]} 54. Kh2 {[%clk 0:00:03.1]} 54... Rg8 {[%clk 0:00:11.8]} 55. Kh3
{[%clk 0:00:02.5]} 55... Rg1 {[%clk 0:00:11.8]} 56. Kh2 {[%clk 0:00:02.8]} 56...
Ra1 {[%clk 0:00:12.7]} 57. Kh3 {[%clk 0:00:03.4]} 57... Kd6 {[%clk 0:00:13.4]}
58. Kg3 {[%clk 0:00:03.8]} 58... Ke5 {[%clk 0:00:12.1]} 59. Kh2 {[%clk
0:00:03.6]} 59... d4 {[%clk 0:00:10.2]} 60. Rxd4 {[%clk 0:00:02.4]} 60... Rxa2
{[%clk 0:00:10.1]} 61. Kg3 {[%clk 0:00:02.8]} 61... Ra1 {[%clk 0:00:10]} 62. Rb4
{[%clk 0:00:03.4]} 62... Rg1+ {[%clk 0:00:09.8]} 63. Kh3 {[%clk 0:00:03.5]}
63... Rg2 {[%clk 0:00:09.9]} 64. Rb5+ {[%clk 0:00:03.9]} 64... Kd6 {[%clk
0:00:09.8]} 65. Rb4 {[%clk 0:00:03.4]} 65... Kd5 {[%clk 0:00:10.2]} 66. Rd4+
{[%clk 0:00:03]} 66... Ke5 {[%clk 0:00:10.2]} 67. Rd2 {[%clk 0:00:03.7]} 67...
Rg1 {[%clk 0:00:09.7]} 68. Kh2 {[%clk 0:00:03.9]} 1/2-1/2